fUSD/lending_fUSD_20250618
["ID","MTS","AMOUNT","RATE_DAILY","PERIOD"]
[366455090,1750263033216,-507.84,0.00016032,2]
[366455092,1750263033225,-498.65,0.00016032,2]
[366455094,1750263033235,-506.6,0.00016032,2]
[366455096,1750263033245,-305.43,0.00016032,2]
[366455099,1750263033255,-303.99,0.00016032,2]
[366455100,1750263033265,-300.88,0.00016032,2]
[366455103,1750263033275,-503.3,0.00016032,2]
[366455105,1750263033284,-491.05,0.00016032,2]
[366455107,1750263033294,-303.05,0.00016032,2]
[366455108,1750263033306,-507.58,0.00016032,2]
[366455110,1750263033316,-250.45903521,0.00016032,2]
[366455113,1750263033327,-241.76096479,0.00016032,2]
[366455115,1750263033337,-301.1,0.00016032,2]
[366455117,1750263033348,-200.0,0.0001607,2]
[366455119,1750263033357,-151.0,0.00016777,2]
[366455121,1750263033368,-151.0,0.00016777,2]
[366455123,1750263033377,-595.241326,0.00016777,2]
[366455125,1750263033390,-73.41053157,0.00016777,2]
[366455127,1750263033399,-500.0,0.00016777,2]
[366455129,1750263033409,-500.0,0.00016777,2]
[366455131,1750263033419,-500.0,0.00016777,2]
[366455133,1750263033429,-500.0,0.00016777,2]
[366455135,1750263033439,-500.0,0.00016777,2]
[366455136,1750263033449,-300.0,0.00016777,2]
[366455137,1750263033459,-300.0,0.00016777,2]
[366455138,1750263033468,-300.0,0.00016777,2]
[366455139,1750263033478,-207.4,0.00016777,2]
[366455140,1750263033488,-212.505782,0.00016777,2]
[366455141,1750263033500,-87.494218,0.00016777,2]
[366455142,1750263033510,-300.0,0.00016777,2]
[366455143,1750263033520,-300.0,0.00016777,2]
[366455144,1750263033530,-300.0,0.00016777,2]
[366455145,1750263033540,-86.41003203,0.00016777,2]
[366455146,1750263033558,-213.58996797,0.00016777,2]
[366455147,1750263033568,-300.0,0.00016777,2]
[366455148,1750263033578,-300.0,0.00016777,2]
[366455149,1750263033587,-157.40307336,0.00016777,2]
[366455150,1750263033599,-142.59692664,0.00016777,2]
[366455151,1750263033608,-300.0,0.00016777,2]
[366455152,1750263033618,-300.0,0.00016777,2]
[366455153,1750263033628,-300.0,0.00016777,2]
[366455154,1750263033638,-300.0,0.00016777,2]
[366455155,1750263033648,-200.0,0.00017071,2]
[366455156,1750263033657,-1000.0,0.00017096,2]
[366455157,1750263033667,-1500.0,0.00017109,2]
[366455158,1750263033676,-187.78,0.00017118,2]
[366455159,1750263033687,-274.08,0.00017175,2]
[366455160,1750263033697,-318.70734244,0.00017187,2]
[366455161,1750263033709,-704.1835659,0.00017187,2]
[366455162,1750263033720,-310.31,0.00017187,2]
[366455163,1750263033732,-418.37319967,0.00017187,2]
[366455164,1750263033744,-586.889,0.00017187,2]
[366455168,1750263038000,-538.7,0.00017187,2]
[366455169,1750263038127,-5229.0,0.00017187,2]
[366455172,1750263039928,-1049.7,0.00017187,2]
[366455173,1750263040226,-694.10981528,0.00017187,2]
[366455479,1750263046034,-508.92,0.00017187,2]
[366455482,1750263046044,-109.22581525,0.00017187,2]
[366455484,1750263046055,-4750.22790169,0.00017187,2]
[366455486,1750263046067,-5046.34560812,0.00017187,2]
[366455500,1750263046190,-4144.22775165,0.00017187,2]
[366455502,1750263046200,-200.0,0.00017401,3]
[366455504,1750263046210,-833.92080167,0.00017448,2]
[366455506,1750263046219,-262.71144668,0.00017629,2]
[366455508,1750263046231,-431.2,0.00017629,2]
[366455512,1750263046262,-26.08855332,0.00017629,2]
[366455514,1750263046272,-4.77515447,0.00017753,2]
[366455520,1750263046319,-145.22484553,0.00017753,2]
[366455522,1750263046329,-166.36,0.0001778,2]
[366455524,1750263046339,-465.90015132,0.000179,2]
[366455526,1750263046349,-267.0,0.00017997,2]
[366455528,1750263046359,-156.587,0.00018146,2]
[366455530,1750263046369,-693.3919763,0.00018146,2]
[366455532,1750263046380,-215.0738,0.00018146,2]
[366455534,1750263046390,-168.0,0.00018166,2]
[366455536,1750263046400,-162.31,0.00018441,2]
[366455538,1750263046410,-465.90015126,0.00018555,2]
[366455540,1750263046420,-168.0,0.00018719,2]
[366455542,1750263046429,-200.0,0.00018732,5]
[366455544,1750263046439,-168.0,0.00018938,2]
[366455546,1750263046449,-200.0,0.00018989,2]
[366455548,1750263046459,-576.560452,0.00019012,2]
[366455550,1750263046469,-151.0,0.00019178,2]
[366455552,1750263046479,-417.84,0.00019178,2]
[366455554,1750263046489,-379.2638,0.000192,2]
[366455556,1750263046498,-673.92838913,0.000192,2]
[366458391,1750263221973,835.815,0.00024658,120]
[366458394,1750263372314,200.0,0.0001507,2]
[366458396,1750263405962,192.74,0.00013699,2]
[366458399,1750263523322,812.05938,0.0002,21]
[366458400,1750263528848,210.52,0.00024657,120]
[366458406,1750263732681,200.0,0.00015519,2]
[366458437,1750264120557,57527.05327785,0.000151,2]
[366458438,1750264126849,74727.10769007,0.00016,2]
[366458442,1750264158289,150.0,0.00024658,120]
[366458464,1750264223133,150.0,0.00018001,29]
[366458465,1750264223567,150.0,0.00018001,29]
[366458474,1750264232053,-200.0,0.00016002,2]
[366458475,1750264232063,-300.0,0.00016066,2]
[366458476,1750264232073,-300.09,0.00016067,2]
[366458477,1750264232083,-84.12985625,0.00016067,2]
[366458482,1750264232195,-217.54014375,0.00016067,2]
[366458484,1750264232207,-302.8,0.00016067,2]
[366458485,1750264232217,-133.16985625,0.00016067,2]
[366458486,1750264232229,-172.36014375,0.00016067,2]
[366458487,1750264232239,-301.7,0.00016067,2]
[366458488,1750264232248,-300.1,0.00016067,2]
[366458489,1750264232258,-305.36,0.00016067,2]
[366458490,1750264232267,-300.49,0.00016067,2]
[366458491,1750264232278,-302.68,0.00016067,2]
[366458492,1750264232288,-301.33,0.00016067,2]
[366458493,1750264232298,-301.38,0.00016067,2]
[366458494,1750264232307,-301.09,0.00016067,2]
[366458495,1750264232318,-301.42,0.00016067,2]
[366458496,1750264232327,-303.93,0.00016067,2]
[366458497,1750264232337,-305.35,0.00016067,2]
[366458498,1750264232347,-302.6,0.00016067,2]
[366458499,1750264232366,-305.18,0.00016067,2]
[366458500,1750264232377,-303.51,0.00016067,2]
[366458501,1750264232387,-504.57,0.00016067,2]
[366458502,1750264232397,-502.47,0.00016067,2]
[366458503,1750264232408,-496.94,0.00016068,2]
[366458504,1750264232418,-502.64,0.00016068,2]
[366458505,1750264232428,-164.44591854,0.00016068,2]
[366458506,1750264232438,-902.00351388,0.00016068,2]
[366458507,1750264232448,-504.79,0.00016068,2]
[366458508,1750264232459,-300.55,0.00016068,2]
[366458509,1750264232470,-492.64,0.00016068,2]
[366458510,1750264232479,-499.98,0.00016068,2]
[366458511,1750264232489,-300.38,0.00016068,2]
[366458512,1750264232499,-509.42,0.00016068,2]
[366458513,1750264232509,-506.66,0.00016068,2]
[366458514,1750264232518,-303.13,0.00016068,2]
[366458515,1750264232528,-499.19,0.00016068,2]
[366458516,1750264232538,-505.77,0.00016068,2]
[366458517,1750264232548,-301.0,0.00016068,2]
[366458518,1750264232558,-492.0,0.00016068,2]
[366458519,1750264232569,-303.82,0.00016068,2]
[366458520,1750264232579,-491.97,0.00016068,2]
[366458521,1750264232589,-491.41,0.00016068,2]
[366458522,1750264232598,-304.95,0.00016068,2]
[366458523,1750264232608,-493.89,0.00016068,2]
[366458524,1750264232618,-490.16,0.00016068,2]
[366458525,1750264232628,-302.96,0.00016068,2]
[366458526,1750264232638,-504.74,0.00016068,2]
[366458527,1750264232648,-498.29,0.00016068,2]
[366458528,1750264232658,-302.17,0.00016068,2]
[366458529,1750264232668,-303.1,0.00016069,2]
[366458530,1750264232678,-509.01,0.00016069,2]
[366458531,1750264232691,-302.23,0.00016069,2]
[366458532,1750264232701,-305.83,0.00016069,2]
[366458533,1750264232710,-304.64,0.00016069,2]
[366458534,1750264232720,-505.6,0.00016069,2]
[366458535,1750264232731,-502.29,0.00016069,2]
[366458536,1750264232741,-505.6,0.00016069,2]
[366458537,1750264232750,-497.7,0.00016069,2]
[366458538,1750264232761,-495.08,0.00016069,2]
[366458539,1750264232771,-490.26,0.00016069,2]
[366458540,1750264232781,-508.94,0.00016069,2]
[366458541,1750264232790,-494.76,0.00016069,2]
[366458542,1750264232800,-305.02,0.00016069,2]
[366458543,1750264232810,-303.09,0.00016069,2]
[366458544,1750264232819,-500.32,0.00016069,2]
[366458545,1750264232829,-496.97,0.0001607,2]
[366458546,1750264232839,-493.4,0.0001607,2]
[366458547,1750264232848,-305.04,0.0001607,2]
[366458548,1750264232858,-499.7,0.0001607,2]
[366458549,1750264232870,-499.83,0.0001607,2]
[366458550,1750264232880,-300.29,0.0001607,2]
[366458551,1750264232890,-492.34,0.0001607,2]
[366458552,1750264232900,-508.89,0.0001607,2]
[366458553,1750264232910,-303.51,0.0001607,2]
[366458554,1750264232920,-508.25,0.0001607,2]
[366458555,1750264232930,-300.41,0.0001607,2]
[366458556,1750264232939,-304.53,0.0001607,2]
[366458557,1750264232949,-507.0,0.0001607,2]
[366458558,1750264232959,-508.59,0.0001607,2]
[366458559,1750264232969,-305.36,0.0001607,2]
[366458560,1750264232980,-496.15,0.00016071,2]
[366458561,1750264232990,-495.91,0.00016071,2]
[366458562,1750264233001,-300.8,0.00016072,2]
[366458563,1750264233010,-497.17,0.00016074,2]
[366458564,1750264233020,-502.65,0.00016074,2]
[366458565,1750264233030,-494.79,0.00016076,2]
[366458566,1750264233040,-302.33,0.00016077,2]
[366458567,1750264233050,-300.33,0.0001608,2]
[366458568,1750264233060,-509.24,0.00016092,2]
[366458569,1750264233071,-504.36,0.00016092,2]
[366458570,1750264233081,-300.0,0.00016096,2]
[366458571,1750264233091,-492.86,0.00016101,2]
[366458572,1750264233101,-490.38,0.00016101,2]
[366458573,1750264233111,-301.29,0.00016122,2]
[366458574,1750264233121,-509.98,0.00016228,2]
[366458575,1750264233131,-509.85,0.00016228,2]
[366458576,1750264233141,-1012.17,0.00016294,2]
[366458577,1750264233151,-187.42,0.00016322,2]
[366458578,1750264233164,-300.0,0.00016324,2]
[366458579,1750264233175,-300.19,0.00016334,2]
[366458580,1750264233185,-560.29864581,0.00016376,2]
[366458581,1750264233195,-166.1,0.00016428,2]
[366458582,1750264233679,-166.1,0.00016428,2]
[366458583,1750264233692,-466.53321671,0.00016437,2]
[366458584,1750264233704,-217.0242182,0.00016437,2]
[366458585,1750264233714,-398.28174927,0.00016437,2]
[366458586,1750264233724,-188.88109721,0.00016437,2]
[366458587,1750264233734,-353.15608345,0.00016437,2]
[366458588,1750264233744,-500.0,0.00016437,2]
[366458589,1750264233753,-1193.82323114,0.00016437,2]
[366458590,1750264233764,-127105.06317003,0.00016438,2]
[366458591,1750264233775,-8351.03036833,0.00016438,2]
[366458592,1750264233852,-956.91278012,0.00016438,2]
[366458593,1750264233915,-1911.50650376,0.00016438,2]
[366458594,1750264233927,-1353.97795263,0.00016438,2]
[366458595,1750264233939,-534.39720805,0.00016438,2]
[366458596,1750264233951,-347.66449194,0.00016438,2]
[366458597,1750264233967,-85846.52380617,0.00016438,2]
[366458598,1750264233977,-321.638058,0.00016438,2]
[366458599,1750264233987,-597.19963855,0.00016438,2]
[366458600,1750264233996,-500.0,0.00016438,2]
[366458601,1750264234006,-500.0,0.00016438,2]
[366458602,1750264234016,-411.86174305,0.00016438,2]
[366458603,1750264234026,-500.0,0.00016438,2]
[366458604,1750264234036,-687.36348983,0.00016438,2]
[366458605,1750264234047,-476.02387471,0.00016438,2]
[366458606,1750264234059,-3517.59655746,0.00016438,2]
[366458607,1750264234070,-8279.71064253,0.00016438,2]
[366458608,1750264234118,-408.31893562,0.00016438,2]
[366458614,1750264237902,-53471.91999999,0.00016438,2]
[366458833,1750264240171,-28404.8184744,0.00016438,2]
[366458837,1750264240203,-3948.5638965,0.00016438,2]
[366458870,1750264240546,-5485.92693296,0.00016438,2]
[366458872,1750264240556,-1784.86303139,0.00016476,2]
[366458874,1750264240566,-2652.78,0.00016576,2]
[366458876,1750264240575,-151.0,0.00016777,2]
[366458878,1750264240585,-300.0,0.00016777,2]
[366458879,1750264240594,-300.0,0.00016777,2]
[366458881,1750264240604,-300.0,0.00016777,2]
[366458883,1750264240613,-300.0,0.00016777,2]
[366458885,1750264240623,-300.0,0.00016777,2]
[366458887,1750264240633,-151.0,0.00016777,2]
[366458889,1750264240642,-300.0,0.00016777,2]
[366458891,1750264240652,-1957.856,0.00016777,2]
[366458893,1750264240661,-300.0,0.00016777,2]
[366458895,1750264240671,-300.0,0.00016777,2]
[366458897,1750264240684,-300.0,0.00016777,2]
[366458899,1750264240693,-300.0,0.00016777,2]
[366458901,1750264240703,-300.0,0.00016777,2]
[366458903,1750264240713,-300.0,0.00016777,2]
[366458904,1750264240723,-300.0,0.00016777,2]
[366458906,1750264240733,-300.0,0.00016777,2]
[366458908,1750264240743,-300.0,0.00016777,2]
[366458910,1750264240753,-207.4,0.00016777,2]
[366458912,1750264240766,-668.65185757,0.00016777,2]
[366458914,1750264240777,-2030.296672,0.00016832,2]
[366458916,1750264240786,-509.39,0.00016864,2]
[366458918,1750264240796,-494.25,0.00016864,2]
[366458920,1750264240805,-2105.41764886,0.00016887,2]
[366458922,1750264240815,-1313.57135114,0.00016942,2]
[366458924,1750264240825,-1000.0,0.00017099,2]
[366458926,1750264240835,-166.1,0.00017177,2]
[366458928,1750264240844,-493.84,0.00017187,2]
[366458930,1750264240854,-300.22,0.00017187,2]
[366458932,1750264240863,-505.33,0.00017187,2]
[366458934,1750264240873,-304.44,0.00017187,2]
[366458935,1750264240882,-505.22,0.00017187,2]
[366458937,1750264240892,-1784.86303137,0.00017201,2]
[366458939,1750264240901,-2000.0,0.000173,2]
[366458941,1750264240910,-833.92080167,0.00017448,2]
[366458943,1750264240920,-200.0,0.00017519,4]
[366458945,1750264240929,-150.0,0.00017532,2]
[366458947,1750264240938,-500.0,0.00017549,2]
[366458949,1750264240948,-300.0,0.00017677,2]
[366458951,1750264240960,-250.0,0.00017677,2]
[366458953,1750264240969,-434.84014135,0.000179,2]
[366458955,1750264240978,-1784.86303137,0.00017926,2]
[366458956,1750264240987,-200.0,0.0001814,2]
[366458958,1750264240997,-156.587,0.00018146,2]
[366458961,1750264241012,-215.0738,0.00018146,2]
[366458963,1750264241022,-693.3919763,0.00018146,2]
[366458965,1750264241032,-434.84014117,0.00018555,2]
[366458967,1750264241042,-334.07161087,0.000186,2]
[366458969,1750264241051,-1784.86303137,0.00018651,2]
[366458971,1750264241061,-657.172721,0.00019012,2]
[366458973,1750264241071,-200.0,0.00019036,6]
[366458975,1750264241080,-187.42,0.00019042,2]
[366458977,1750264241089,-4624.08578494,0.000191,2]
[366458979,1750264241099,-151.0,0.00019178,2]
[366458981,1750264241108,-334.27,0.00019178,2]
[366458983,1750264241117,-151.22496535,0.00019181,2]
[366458985,1750264241128,-1000.0,0.00019188,2]
[366458987,1750264241137,-151.0,0.000192,2]
[366458989,1750264241147,-151.0,0.000192,2]
[366458990,1750264241156,-3185.89443704,0.000192,2]
[366459208,1750264243330,-264.84864,0.000192,2]
[366459223,1750264243464,-1420.53935542,0.000192,2]
[366459460,1750264245887,-795.30485754,0.000192,2]
[366459462,1750264245898,-151.0,0.000192,2]
[366459464,1750264245908,-909.35714245,0.00019236,2]
[366459471,1750264245970,-90.64285755,0.00019236,2]
[366459474,1750264245981,-411.17518818,0.000193,2]
[366459478,1750264246016,-588.82481182,0.000193,2]
[366459480,1750264246027,-511.05893823,0.000193,2]
[366459483,1750264246040,-5662.63896177,0.000193,2]
[366459485,1750264246051,-163.22822479,0.000193,2]
[366459487,1750264246062,-220.88108162,0.000193,2]
[366459489,1750264246073,-406.22119182,0.000193,2]
[366459502,1750264246185,-4593.77880818,0.000193,2]
[366459505,1750264246196,-208.42363311,0.000193,2]
[366459507,1750264246207,-377.12062265,0.000193,4]
[366459509,1750264246219,-151.0,0.000193,2]
[366459511,1750264246230,-151.0,0.000193,2]
[366459513,1750264246241,-151.0,0.000193,2]
[366459515,1750264246251,-274.08,0.00019322,2]
[366459517,1750264246262,-150.99,0.00019339,2]
[366459520,1750264246274,-7203.94,0.00019339,2]
[366459522,1750264246285,-299.99,0.00019339,7]
[366459524,1750264246295,-999.99,0.00019339,2]
[366459526,1750264246306,-408.44,0.00019339,2]
[366459528,1750264246317,-6561.06121276,0.00019339,2]
[366459533,1750264246352,-3438.92878724,0.00019339,2]
[366459535,1750264246363,-150.99,0.00019339,2]
[366459537,1750264246374,-3685.03,0.00019339,2]
[366459539,1750264246385,-500.0,0.00019373,2]
[366459542,1750264246395,-500.0,0.00019373,2]
[366459544,1750264246406,-500.0,0.00019373,2]
[366459546,1750264246418,-500.0,0.00019373,2]
[366459548,1750264246429,-500.0,0.00019373,2]
[366459550,1750264246440,-1784.86303137,0.00019376,2]
[366459552,1750264246451,-150.36,0.0001939,2]
[366459554,1750264246462,-150.36,0.0001939,2]
[366459556,1750264246473,-150.36,0.0001939,2]
[366459559,1750264246483,-150.36,0.0001939,2]
[366459561,1750264246494,-150.36,0.0001939,2]
[366459563,1750264246504,-150.36,0.0001939,2]
[366459565,1750264246515,-150.36,0.0001939,2]
[366459567,1750264246526,-150.36,0.0001939,2]
[366459569,1750264246537,-150.36,0.0001939,2]
[366459571,1750264246547,-150.36,0.0001939,2]
[366459573,1750264246558,-817.02100473,0.00019399,2]
[366459575,1750264246569,-176.21,0.00019399,2]
[366459578,1750264246581,-290.30795132,0.00019399,2]
[366459580,1750264246591,-185.59612266,0.00019399,2]
[366459582,1750264246602,-500.0,0.00019399,2]
[366459584,1750264246613,-186.68618759,0.00019399,2]
[366459586,1750264246624,-328.261333,0.00019399,2]
[366459588,1750264246635,-39825.33901327,0.00019399,2]
[366459846,1750264396265,183.1,0.00013699,2]
[366459848,1750264455899,1133.0,0.00024658,120]
[366459857,1750264938112,2000.0,0.000246,120]
[366459858,1750264957858,500.0,0.000246,120]
[366459862,1750265146328,2048.0,0.00024658,120]
[366459863,1750265158524,2048.0,0.00024658,120]
[366459864,1750265169684,2048.0,0.00024658,120]
[366459865,1750265179316,2048.0,0.00024658,120]
[366459866,1750265190031,2048.0,0.00024658,120]
[366459867,1750265201137,2048.0,0.00024658,120]
[366459868,1750265212054,2048.0,0.00024658,120]
[366459870,1750265224621,2048.0,0.00024658,120]
[366459872,1750265235896,2048.0,0.00024658,120]
[366459875,1750265246154,2048.0,0.00024658,120]
[366459876,1750265254258,2048.0,0.00024658,120]
[366459877,1750265263416,2048.0,0.00024658,120]
[366459878,1750265285258,2423.156,0.00024658,120]
[366459880,1750265316884,1234.0,0.00015,2]
[366459883,1750265345108,173.94,0.00013699,2]
[366459884,1750265347222,1399.0,0.00016,2]
[366459909,1750265431853,-302.59,0.00016077,2]
[366459910,1750265431863,-504.85,0.00016077,2]
[366459911,1750265431873,-1200.0,0.00016077,2]
[366459912,1750265431883,-300.0,0.00016077,2]
[366459913,1750265431894,-55.03876094,0.00016078,2]
[366459914,1750265431942,-246.63123906,0.00016078,2]
[366459915,1750265431952,-301.56,0.00016078,2]
[366459916,1750265431963,-301.9,0.00016078,2]
[366459917,1750265431973,-302.62,0.00016078,2]
[366459918,1750265431984,-304.05,0.00016078,2]
[366459919,1750265431993,-300.92,0.00016078,2]
[366459920,1750265432005,-304.73,0.00016078,2]
[366459921,1750265432014,-300.66,0.00016078,2]
[366459922,1750265432024,-301.26,0.00016079,2]
[366459923,1750265432035,-302.8,0.00016079,2]
[366459924,1750265432045,-550.0,0.00016079,2]
[366459925,1750265432057,-300.0,0.00016079,2]
[366459926,1750265432071,-224.43418641,0.00016079,2]
[366459927,1750265432206,-81.22581359,0.00016079,2]
[366459928,1750265432216,-491.77,0.00016079,2]
[366459929,1750265432227,-497.75,0.00016079,2]
[366459930,1750265432236,-305.61,0.0001608,2]
[366459931,1750265432246,-302.06,0.0001608,2]
[366459932,1750265432257,-304.69,0.0001608,2]
[366459933,1750265432267,-502.21,0.0001608,2]
[366459934,1750265432278,-509.14,0.0001608,2]
[366459935,1750265432288,-304.9,0.0001608,2]
[366459936,1750265432298,-497.39,0.0001608,2]
[366459937,1750265432309,-449.60531848,0.0001608,2]
[366459939,1750265432324,-46.75468152,0.0001608,2]
[366459941,1750265432335,-305.34,0.0001608,2]
[366459943,1750265432346,-498.5,0.0001608,2]
[366459945,1750265432356,-207.85025513,0.0001608,2]
[366459947,1750265432369,-284.08974487,0.0001608,2]
[366459949,1750265432380,-302.37,0.0001608,2]
[366459951,1750265432391,-498.03,0.0001608,2]
[366459953,1750265432401,-495.95,0.0001608,2]
[366459955,1750265432410,-301.91,0.0001608,2]
[366459957,1750265432420,-34.81036433,0.00016081,2]
[366459965,1750265432487,-265.18963567,0.00016081,2]
[366459967,1750265432498,-304.36,0.00016081,2]
[366459969,1750265432508,-304.0,0.00016081,2]
[366459971,1750265432518,-302.03,0.00016081,2]
[366459973,1750265432527,-491.35,0.00016082,2]
[366459975,1750265432537,-304.59,0.00016082,2]
[366459978,1750265432547,-302.72,0.00016082,2]
[366459980,1750265432558,-303.82,0.00016082,2]
[366459982,1750265432567,-305.85,0.00016082,2]
[366459984,1750265432577,-301.79,0.00016082,2]
[366459986,1750265432587,-302.66,0.00016082,2]
[366459988,1750265432597,-302.05,0.00016082,2]
[366459990,1750265432607,-493.79,0.00016082,2]
[366459992,1750265432616,-502.47,0.00016082,2]
[366459994,1750265432626,-498.27,0.00016082,2]
[366459996,1750265432635,-305.06,0.00016082,2]
[366459998,1750265432644,-1000.0,0.00016082,2]
[366460000,1750265432654,-211.4632205,0.00016082,2]
[366460002,1750265432663,-500.0,0.00016082,2]
[366460004,1750265432673,-500.0,0.00016082,2]
[366460006,1750265432682,-371.56721226,0.00016082,2]
[366460008,1750265432692,-500.0,0.00016082,2]
[366460010,1750265432701,-500.0,0.00016082,2]
[366460012,1750265432711,-236.50988329,0.00016082,2]
[366460014,1750265432720,-311.87281506,0.00016082,2]
[366460016,1750265432729,-500.0,0.00016082,2]
[366460018,1750265432739,-500.0,0.00016082,2]
[366460020,1750265432749,-494.75,0.00016082,2]
[366460022,1750265432758,-497.33,0.00016083,2]
[366460024,1750265432768,-496.78,0.00016083,2]
[366460026,1750265432778,-505.76,0.00016083,2]
[366460028,1750265432787,-301.52,0.00016083,2]
[366460030,1750265432797,-491.33,0.00016083,2]
[366460032,1750265432806,-497.32,0.00016083,2]
[366460034,1750265432816,-303.95,0.00016083,2]
[366460036,1750265432826,-492.56,0.00016083,2]
[366460038,1750265432835,-504.2,0.00016083,2]
[366460040,1750265432844,-305.39,0.00016083,2]
[366460041,1750265432854,-50231.85837407,0.00016083,2]
[366460052,1750265432951,-870.04,0.00016083,2]
[366460054,1750265432962,-5202.80853893,0.00016083,2]
[366460055,1750265432974,-2029.07812604,0.00016083,2]
[366460056,1750265432986,-389.01298711,0.00016083,2]
[366460061,1750265437985,-1776.8221065,0.00016083,2]
[366460062,1750265438051,-8926.84758575,0.00016083,2]
[366460093,1750265440483,-509.6,0.00016077,2]
[366460094,1750265440493,-302.28,0.00016077,2]
[366460096,1750265440503,-1447.77562555,0.00016083,2]
[366460098,1750265440515,-273.13560001,0.00016083,2]
[366460100,1750265440527,-2363.47763907,0.00016083,2]
[366460102,1750265440539,-2973.29500005,0.00016083,2]
[366460108,1750265440584,-346.31876241,0.00016083,2]
[366460110,1750265440595,-304.37,0.00016083,2]
[366460112,1750265440604,-496.86,0.00016084,2]
[366460114,1750265440614,-501.26,0.00016084,2]
[366460116,1750265440623,-506.78,0.00016084,2]
[366460118,1750265440634,-303.29,0.00016084,2]
[366460120,1750265440644,-509.57,0.00016084,2]
[366460121,1750265440654,-301.37,0.00016084,2]
[366460122,1750265440664,-77.82739362,0.00016084,2]
[366460123,1750265440676,-419.62260638,0.00016084,2]
[366460124,1750265440686,-500.04,0.00016084,2]
[366460125,1750265440696,-304.66,0.00016084,2]
[366460126,1750265440707,-360.91431012,0.00016084,2]
[366460127,1750265440765,-143.30568988,0.00016084,2]
[366460128,1750265440775,-506.01,0.00016085,2]
[366460129,1750265440785,-305.46,0.00016085,2]
[366460130,1750265440795,-509.35,0.00016085,2]
[366460131,1750265440806,-494.93,0.00016085,2]
[366460132,1750265440816,-301.82,0.00016085,2]
[366460133,1750265440825,-495.95,0.00016085,2]
[366460134,1750265440835,-501.38,0.00016085,2]
[366460135,1750265440844,-304.73,0.00016085,2]
[366460136,1750265440854,-493.13,0.00016085,2]
[366460137,1750265440863,-509.61,0.00016085,2]
[366460138,1750265440873,-305.55,0.00016085,2]
[366460139,1750265440883,-302.62,0.00016086,2]
[366460140,1750265440894,-504.14,0.00016086,2]
[366460141,1750265440904,-495.85,0.00016086,2]
[366460142,1750265440913,-304.2,0.00016086,2]
[366460143,1750265440923,-507.53,0.00016086,2]
[366460144,1750265440933,-490.46,0.00016086,2]
[366460145,1750265440943,-300.99,0.00016086,2]
[366460146,1750265440953,-505.83,0.00016086,2]
[366460147,1750265440963,-502.57,0.00016086,2]
[366460148,1750265440973,-303.41,0.00016086,2]
[366460149,1750265440982,-495.84,0.00016086,2]
[366460150,1750265440992,-495.16,0.00016086,2]
[366460151,1750265441002,-303.22,0.00016086,2]
[366460152,1750265441012,-493.98,0.00016087,2]
[366460153,1750265441022,-305.65,0.00016087,2]
[366460154,1750265441031,-302.46,0.00016087,2]
[366460155,1750265441041,-502.88,0.00016087,2]
[366460156,1750265441050,-498.99,0.00016087,2]
[366460157,1750265441065,-497.73,0.00016087,2]